[Event "Late-Titled-Tuesday-Blitz-February-13-2024"]
[Site "Chess.com"]
[Date "2024.02.13"]
[Round "7"]
[White "ritanovikova"]
[Black "pfalcon1949"]
[Result "0-1"]
[WhiteElo "2204"]
[BlackElo "1953"]
[TimeControl "180+1"]
[EndTime "15:17:17 PST"]
[Termination "pfalcon1949 won by checkmate"]

1. e4 {[%clk 0:02:58.1]} 1... e6 {[%clk 0:02:59.3]} 2. Nc3 {[%clk 0:02:58.6]}
2... d5 {[%clk 0:02:59.2]} 3. d4 {[%clk 0:02:58.7]} 3... Bb4 {[%clk 0:02:57.9]}
4. Qg4 {[%clk 0:02:56.3]} 4... Kf8 {[%clk 0:02:54.7]} 5. e5 {[%clk 0:02:46.9]}
5... c5 {[%clk 0:02:51.8]} 6. Nf3 {[%clk 0:02:43.1]} 6... Qa5 {[%clk 0:02:49.1]}
7. Bd2 {[%clk 0:02:42.4]} 7... b6 {[%clk 0:02:48.1]} 8. Be2 {[%clk 0:02:29.2]}
8... Ba6 {[%clk 0:02:46.9]} 9. O-O {[%clk 0:02:10.2]} 9... Bxe2 {[%clk
0:02:44.7]} 10. a3 {[%clk 0:01:59.2]} 10... Bxf1 {[%clk 0:02:40.4]} 11. dxc5
{[%clk 0:01:39.3]} 11... bxc5 {[%clk 0:02:15.8]} 12. Nxd5 {[%clk 0:01:21.1]}
12... Bxd2 {[%clk 0:02:03.7]} 13. b4 {[%clk 0:01:06]} 13... cxb4 {[%clk
0:01:57]} 14. Nxd2 {[%clk 0:00:59.9]} 14... Qxd5 {[%clk 0:01:49.5]} 15. Nxf1
{[%clk 0:00:59.9]} 15... Nh6 {[%clk 0:01:47.5]} 16. Qxb4+ {[%clk 0:00:59.3]}
16... Kg8 {[%clk 0:01:42.5]} 17. Ne3 {[%clk 0:00:58.3]} 17... Qxe5 {[%clk
0:01:35.6]} 18. Rd1 {[%clk 0:00:58.1]} 18... Nc6 {[%clk 0:01:32.8]} 19. Qb7
{[%clk 0:00:57.6]} 19... Rd8 {[%clk 0:01:24.9]} 20. Rb1 {[%clk 0:00:24.3]} 20...
Qd6 {[%clk 0:01:13.3]} 21. Qa6 {[%clk 0:00:14.5]} 21... Nf5 {[%clk 0:01:04.8]}
22. Nf1 {[%clk 0:00:08.6]} 22... h6 {[%clk 0:01:02.4]} 23. g3 {[%clk 0:00:08]}
23... Nfd4 {[%clk 0:01:01.4]} 24. Qd3 {[%clk 0:00:06.9]} 24... g6 {[%clk
0:01:00.1]} 25. Ne3 {[%clk 0:00:06.3]} 25... Kh7 {[%clk 0:00:59.5]} 26. Kg2
{[%clk 0:00:05.8]} 26... Nf5 {[%clk 0:00:56.5]} 27. Qe4 {[%clk 0:00:05.8]} 27...
Nxe3+ {[%clk 0:00:55]} 28. Qxe3 {[%clk 0:00:06.2]} 28... Qd5+ {[%clk 0:00:55.1]}
29. Kg1 {[%clk 0:00:06.2]} 29... Rhe8 {[%clk 0:00:54.5]} 30. h4 {[%clk
0:00:06.3]} 30... h5 {[%clk 0:00:54.1]} 31. Re1 {[%clk 0:00:06]} 31... Nd4
{[%clk 0:00:50.9]} 32. Kf1 {[%clk 0:00:02.9]} 32... Nxc2 {[%clk 0:00:50]} 33.
Qe2 {[%clk 0:00:01.6]} 33... Qh1# {[%clk 0:00:48.7]} 0-1

[Event "Late-Titled-Tuesday-Blitz-February-13-2024"]
[Site "Chess.com"]
[Date "2024.02.13"]
[Round "7"]
[White "AlexeiShirov"]
[Black "karinachess1"]
[Result "1-0"]
[WhiteElo "2860"]
[BlackElo "2677"]
[TimeControl "180+1"]
[EndTime "15:17:20 PST"]
[Termination "AlexeiShirov won by resignation"]

1. e4 {[%clk 0:03:00.9]} 1... e5 {[%clk 0:03:00.2]} 2. Nf3 {[%clk 0:03:00.5]}
2... Nc6 {[%clk 0:03:00.7]} 3. Bb5 {[%clk 0:03:00.2]} 3... Nf6 {[%clk
0:03:01.1]} 4. d3 {[%clk 0:02:54.6]} 4... d6 {[%clk 0:03:01.4]} 5. O-O {[%clk
0:02:51.5]} 5... g6 {[%clk 0:03:01.7]} 6. d4 {[%clk 0:02:41.7]} 6... Bd7 {[%clk
0:03:00.3]} 7. d5 {[%clk 0:02:38.4]} 7... Ne7 {[%clk 0:02:56.2]} 8. Bxd7+ {[%clk
0:02:37.6]} 8... Qxd7 {[%clk 0:02:54.5]} 9. Re1 {[%clk 0:02:36.7]} 9... Bg7
{[%clk 0:02:54.7]} 10. c4 {[%clk 0:02:36.7]} 10... O-O {[%clk 0:02:54.7]} 11.
Nc3 {[%clk 0:02:36.5]} 11... Nh5 {[%clk 0:02:42.8]} 12. Rb1 {[%clk 0:02:35.7]}
12... a5 {[%clk 0:02:42.7]} 13. a3 {[%clk 0:02:35.1]} 13... a4 {[%clk
0:02:41.2]} 14. Nb5 {[%clk 0:02:14.1]} 14... b6 {[%clk 0:02:32.7]} 15. b4 {[%clk
0:01:54.2]} 15... axb3 {[%clk 0:02:31.1]} 16. Rxb3 {[%clk 0:01:54.1]} 16... h6
{[%clk 0:02:21]} 17. Nh4 {[%clk 0:01:45.6]} 17... Kh7 {[%clk 0:02:07.9]} 18. g3
{[%clk 0:01:40.2]} 18... Nf6 {[%clk 0:01:42.6]} 19. f4 {[%clk 0:01:35.1]} 19...
exf4 {[%clk 0:01:21.7]} 20. gxf4 {[%clk 0:01:34]} 20... Nh5 {[%clk 0:01:18.1]}
21. e5 {[%clk 0:01:28.7]} 21... dxe5 {[%clk 0:01:12.3]} 22. fxe5 {[%clk
0:01:28]} 22... Nf5 {[%clk 0:01:12.3]} 23. Qg4 {[%clk 0:01:21.5]} 23... Ra4
{[%clk 0:01:04.2]} 24. e6 {[%clk 0:01:19.7]} 24... Qxd5 {[%clk 0:00:52.6]} 25.
Qxf5 {[%clk 0:01:06.6]} 25... gxf5 {[%clk 0:00:48.9]} 26. cxd5 {[%clk 0:01:05]}
26... Rxh4 {[%clk 0:00:32.2]} 27. e7 {[%clk 0:01:04.7]} 27... Rg8 {[%clk
0:00:32.8]} 28. e8=Q {[%clk 0:00:57.3]} 28... Bd4+ {[%clk 0:00:29.4]} 29. Kh1
{[%clk 0:00:56.6]} 29... Rxe8 {[%clk 0:00:11.2]} 30. Rxe8 {[%clk 0:00:55.2]}
30... Bc5 {[%clk 0:00:10.6]} 31. Bb2 {[%clk 0:00:49.7]} 31... f6 {[%clk
0:00:05.6]} 32. Nxc7 {[%clk 0:00:47]} 32... Bd6 {[%clk 0:00:05]} 33. h3 {[%clk
0:00:40.2]} 33... Bxc7 {[%clk 0:00:04.4]} 34. Re7+ {[%clk 0:00:39.5]} 1-0

[Event "Late-Titled-Tuesday-Blitz-February-13-2024"]
[Site "Chess.com"]
[Date "2024.02.13"]
[Round "7"]
[White "Nemsko"]
[Black "lluiss"]
[Result "1-0"]
[WhiteElo "2389"]
[BlackElo "2158"]
[TimeControl "180+1"]
[EndTime "15:17:20 PST"]
[Termination "Nemsko won by resignation"]

1. e4 {[%clk 0:03:00.9]} 1... e6 {[%clk 0:02:58.2]} 2. d4 {[%clk 0:03:00.4]}
2... d5 {[%clk 0:02:58.3]} 3. Nc3 {[%clk 0:02:59.5]} 3... Nf6 {[%clk 0:02:57.7]}
4. Bg5 {[%clk 0:02:53.2]} 4... Be7 {[%clk 0:02:56.3]} 5. e5 {[%clk 0:02:52.7]}
5... Nfd7 {[%clk 0:02:56.3]} 6. h4 {[%clk 0:02:52.5]} 6... b6 {[%clk 0:02:43.2]}
7. Qg4 {[%clk 0:02:46]} 7... h5 {[%clk 0:02:25]} 8. Qg3 {[%clk 0:02:42.6]} 8...
g6 {[%clk 0:02:24.1]} 9. O-O-O {[%clk 0:02:40.7]} 9... Ba6 {[%clk 0:02:23.5]}
10. Bd3 {[%clk 0:02:39.7]} 10... Bxd3 {[%clk 0:02:23]} 11. Rxd3 {[%clk
0:02:40.6]} 11... Nc6 {[%clk 0:02:23.1]} 12. Nge2 {[%clk 0:02:39.4]} 12... Bxg5+
{[%clk 0:02:23.1]} 13. hxg5 {[%clk 0:02:39.4]} 13... Qe7 {[%clk 0:02:22.7]} 14.
Qf4 {[%clk 0:02:36.5]} 14... O-O-O {[%clk 0:02:20.3]} 15. Rdh3 {[%clk
0:02:36.7]} 15... Rhf8 {[%clk 0:02:18.5]} 16. g4 {[%clk 0:02:34.3]} 16... hxg4
{[%clk 0:02:17.7]} 17. Qxg4 {[%clk 0:02:35.2]} 17... Qb4 {[%clk 0:02:05.2]} 18.
a3 {[%clk 0:02:34.2]} 18... Qc4 {[%clk 0:02:03.6]} 19. b3 {[%clk 0:02:25]} 19...
Ncxe5 {[%clk 0:01:59.7]} 20. bxc4 {[%clk 0:02:19.8]} 20... Nxg4 {[%clk
0:01:59.1]} 21. Rf3 {[%clk 0:02:18.3]} 21... e5 {[%clk 0:01:35.6]} 22. cxd5
{[%clk 0:02:15.6]} 22... exd4 {[%clk 0:01:33]} 23. Nxd4 {[%clk 0:02:14.2]} 23...
Nde5 {[%clk 0:01:33]} 24. Rf4 {[%clk 0:02:09.7]} 24... Rh8 {[%clk 0:01:30.7]}
25. Rg1 {[%clk 0:02:07.2]} 25... Rh2 {[%clk 0:01:13.9]} 26. Rgxg4 {[%clk
0:01:43.1]} 26... Nxg4 {[%clk 0:01:12.9]} 27. Rxg4 {[%clk 0:01:44]} 27... Rxf2
{[%clk 0:01:13.1]} 28. Re4 {[%clk 0:01:38.8]} 28... Rh8 {[%clk 0:01:12.1]} 29.
Re7 {[%clk 0:01:35.8]} 29... Rhh2 {[%clk 0:01:06.4]} 30. Ncb5 {[%clk 0:01:33.2]}
30... a6 {[%clk 0:01:03.7]} 31. Rxc7+ {[%clk 0:01:31.3]} 31... Kd8 {[%clk
0:00:56.2]} 32. Nc6+ {[%clk 0:01:28.5]} 32... Ke8 {[%clk 0:00:56.3]} 33. Nd6+
{[%clk 0:01:17.6]} 33... Kf8 {[%clk 0:00:55.1]} 34. Ne5 {[%clk 0:01:02.2]} 34...
Rhg2 {[%clk 0:00:32.6]} 35. Ndxf7 {[%clk 0:00:49.5]} 35... b5 {[%clk 0:00:19.4]}
36. Nxg6+ {[%clk 0:00:48.8]} 36... Kg7 {[%clk 0:00:18.6]} 37. Nfe5+ {[%clk
0:00:48.8]} 37... Kg8 {[%clk 0:00:15.9]} 38. d6 {[%clk 0:00:41.5]} 1-0

[Event "Late-Titled-Tuesday-Blitz-February-13-2024"]
[Site "Chess.com"]
[Date "2024.02.13"]
[Round "7"]
[White "Oleksandr_Bortnyk"]
[Black "Genghis_K"]
[Result "1-0"]
[WhiteElo "3054"]
[BlackElo "2914"]
[TimeControl "180+1"]
[EndTime "15:17:25 PST"]
[Termination "Oleksandr_Bortnyk won by resignation"]

1. e4 {[%clk 0:02:54.7]} 1... c5 {[%clk 0:02:31.3]} 2. c3 {[%clk 0:02:53.9]}
2... Nf6 {[%clk 0:02:31.1]} 3. e5 {[%clk 0:02:54.2]} 3... Nd5 {[%clk 0:02:31.9]}
4. d4 {[%clk 0:02:55.1]} 4... cxd4 {[%clk 0:02:32.1]} 5. Nf3 {[%clk 0:02:55.9]}
5... d6 {[%clk 0:02:32.3]} 6. cxd4 {[%clk 0:02:56.3]} 6... Nc6 {[%clk
0:02:32.4]} 7. Bc4 {[%clk 0:02:56.6]} 7... Nb6 {[%clk 0:02:28.2]} 8. Bb5 {[%clk
0:02:56]} 8... dxe5 {[%clk 0:02:26]} 9. Nxe5 {[%clk 0:02:56.9]} 9... Bd7 {[%clk
0:02:25.5]} 10. Nxd7 {[%clk 0:02:57.3]} 10... Qxd7 {[%clk 0:02:25.7]} 11. Nc3
{[%clk 0:02:58.2]} 11... Rd8 {[%clk 0:02:19.7]} 12. Be3 {[%clk 0:02:52.7]} 12...
a6 {[%clk 0:02:17.4]} 13. Bxc6 {[%clk 0:02:48.8]} 13... Qxc6 {[%clk 0:02:17.7]}
14. O-O {[%clk 0:02:49.7]} 14... e6 {[%clk 0:02:14.5]} 15. Qg4 {[%clk
0:02:48.8]} 15... h5 {[%clk 0:02:14.3]} 16. Qh3 {[%clk 0:02:47.7]} 16... Nd5
{[%clk 0:02:10.7]} 17. Rac1 {[%clk 0:02:47]} 17... Bd6 {[%clk 0:02:04.9]} 18.
Ne4 {[%clk 0:02:32.4]} 18... Nf4 {[%clk 0:01:51.7]} 19. Bxf4 {[%clk 0:01:36.4]}
19... Qxe4 {[%clk 0:01:49.3]} 20. Bxd6 {[%clk 0:01:33.3]} 20... Rxd6 {[%clk
0:01:50.2]} 21. Rc8+ {[%clk 0:01:10.6]} 21... Rd8 {[%clk 0:01:49.7]} 22. Rxd8+
{[%clk 0:01:11.2]} 22... Kxd8 {[%clk 0:01:50.6]} 23. Qg3 {[%clk 0:01:11.7]}
23... Ke7 {[%clk 0:01:35.4]} 24. Qg5+ {[%clk 0:01:10.2]} 24... Kd7 {[%clk
0:01:22.2]} 25. Qxg7 {[%clk 0:01:09.1]} 25... Rh7 {[%clk 0:01:22.8]} 26. Qg8
{[%clk 0:01:06.6]} 26... h4 {[%clk 0:01:16.7]} 27. h3 {[%clk 0:00:53.1]} 27...
Ke7 {[%clk 0:01:14.1]} 28. Qg5+ {[%clk 0:00:38.4]} 28... f6 {[%clk 0:01:09.2]}
29. Qg8 {[%clk 0:00:37.3]} 29... Rf7 {[%clk 0:00:15.4]} 30. Rc1 {[%clk
0:00:32.1]} 30... Qf4 {[%clk 0:00:15.8]} 31. Qc8 {[%clk 0:00:30.6]} 31... f5
{[%clk 0:00:13.2]} 32. Rc7+ {[%clk 0:00:29.5]} 32... Kf6 {[%clk 0:00:13.8]} 33.
Qh8+ {[%clk 0:00:24.9]} 33... Kg6 {[%clk 0:00:14.3]} 34. Qg8+ {[%clk 0:00:24.9]}
34... Kh6 {[%clk 0:00:14.9]} 35. Qxf7 {[%clk 0:00:24.8]} 1-0

[Event "Late-Titled-Tuesday-Blitz-February-13-2024"]
[Site "Chess.com"]
[Date "2024.02.13"]
[Round "7"]
[White "shirovin"]
[Black "nitpicker"]
[Result "0-1"]
[WhiteElo "2100"]
[BlackElo "2235"]
[TimeControl "180+1"]
[EndTime "15:17:25 PST"]
[Termination "nitpicker won on time"]

1. e4 {[%clk 0:03:00.9]} 1... c5 {[%clk 0:02:58.8]} 2. Nf3 {[%clk 0:02:59.8]}
2... Nc6 {[%clk 0:02:58.7]} 3. b4 {[%clk 0:02:59]} 3... cxb4 {[%clk 0:02:51.8]}
4. d4 {[%clk 0:02:56.4]} 4... g6 {[%clk 0:02:42.7]} 5. Bc4 {[%clk 0:02:30.9]}
5... Bg7 {[%clk 0:02:39.7]} 6. O-O {[%clk 0:02:22.8]} 6... a6 {[%clk 0:02:22.9]}
7. Bb2 {[%clk 0:02:07.2]} 7... b5 {[%clk 0:02:22.1]} 8. Bd3 {[%clk 0:01:59.3]}
8... e6 {[%clk 0:02:14.6]} 9. Nbd2 {[%clk 0:01:51.6]} 9... Nge7 {[%clk 0:02:08]}
10. e5 {[%clk 0:01:36.4]} 10... d5 {[%clk 0:01:34.3]} 11. Re1 {[%clk 0:01:21.1]}
11... O-O {[%clk 0:01:33]} 12. Nf1 {[%clk 0:01:20.4]} 12... Qc7 {[%clk 0:01:22]}
13. Ng3 {[%clk 0:01:19.1]} 13... f6 {[%clk 0:01:18.5]} 14. Rc1 {[%clk
0:00:52.9]} 14... Bd7 {[%clk 0:01:14.3]} 15. a3 {[%clk 0:00:45.5]} 15... bxa3
{[%clk 0:01:12.1]} 16. Bxa3 {[%clk 0:00:44.5]} 16... b4 {[%clk 0:01:12.7]} 17.
Bb2 {[%clk 0:00:43.4]} 17... Qb7 {[%clk 0:01:05.2]} 18. exf6 {[%clk 0:00:30.3]}
18... Bxf6 {[%clk 0:01:04.7]} 19. Ne5 {[%clk 0:00:30.2]} 19... Nxe5 {[%clk
0:01:00.6]} 20. dxe5 {[%clk 0:00:29.8]} 20... Bg5 {[%clk 0:00:58.8]} 21. Rb1
{[%clk 0:00:26.9]} 21... Qb6 {[%clk 0:00:55.8]} 22. Qe2 {[%clk 0:00:25]} 22...
Rf7 {[%clk 0:00:47.5]} 23. Bc1 {[%clk 0:00:18.3]} 23... Bxc1 {[%clk 0:00:43.5]}
24. Rbxc1 {[%clk 0:00:18.1]} 24... a5 {[%clk 0:00:44.1]} 25. h4 {[%clk
0:00:15.6]} 25... Raf8 {[%clk 0:00:43.2]} 26. Rf1 {[%clk 0:00:14.5]} 26... a4
{[%clk 0:00:42.4]} 27. h5 {[%clk 0:00:14.3]} 27... a3 {[%clk 0:00:40.6]} 28.
hxg6 {[%clk 0:00:13.5]} 28... hxg6 {[%clk 0:00:40.2]} 29. Rb1 {[%clk 0:00:10.6]}
29... Nf5 {[%clk 0:00:34.5]} 30. Qg4 {[%clk 0:00:09.3]} 30... Rg7 {[%clk
0:00:29.2]} 31. Qe2 {[%clk 0:00:04]} 31... Nxg3 {[%clk 0:00:27.8]} 0-1

[Event "Late-Titled-Tuesday-Blitz-February-13-2024"]
[Site "Chess.com"]
[Date "2024.02.13"]
[Round "7"]
[White "GlavkonVVS"]
[Black "Flaccidmoves"]
[Result "0-1"]
[WhiteElo "2555"]
[BlackElo "2440"]
[TimeControl "180+1"]
[EndTime "15:17:28 PST"]
[Termination "Flaccidmoves won by resignation"]

1. c4 {[%clk 0:03:00.9]} 1... c6 {[%clk 0:02:56.8]} 2. g3 {[%clk 0:02:59.7]}
2... d5 {[%clk 0:02:57.2]} 3. Bg2 {[%clk 0:02:59.4]} 3... Nf6 {[%clk 0:02:55.2]}
4. b3 {[%clk 0:02:59.6]} 4... e5 {[%clk 0:02:53.5]} 5. Bb2 {[%clk 0:02:58.9]}
5... d4 {[%clk 0:02:52.2]} 6. Nf3 {[%clk 0:02:57.3]} 6... Bd6 {[%clk 0:02:51.1]}
7. O-O {[%clk 0:02:55.7]} 7... O-O {[%clk 0:02:49.9]} 8. e3 {[%clk 0:02:53.5]}
8... c5 {[%clk 0:02:49.7]} 9. exd4 {[%clk 0:02:49.8]} 9... cxd4 {[%clk
0:02:49.2]} 10. d3 {[%clk 0:02:49.8]} 10... Nc6 {[%clk 0:02:48.9]} 11. Na3
{[%clk 0:02:44.7]} 11... Nd7 {[%clk 0:02:42.9]} 12. Nc2 {[%clk 0:02:44.6]} 12...
Nc5 {[%clk 0:02:39.5]} 13. Re1 {[%clk 0:02:39.2]} 13... Bf5 {[%clk 0:02:36.4]}
14. Bf1 {[%clk 0:02:36]} 14... a5 {[%clk 0:02:17.6]} 15. Ba3 {[%clk 0:02:32.7]}
15... Re8 {[%clk 0:02:11.7]} 16. Nh4 {[%clk 0:02:27.6]} 16... Be6 {[%clk
0:02:07.8]} 17. Bg2 {[%clk 0:02:25.5]} 17... Qd7 {[%clk 0:01:47.3]} 18. Bxc5
{[%clk 0:02:14.7]} 18... Bxc5 {[%clk 0:01:47.1]} 19. Bxc6 {[%clk 0:02:14.8]}
19... Qxc6 {[%clk 0:01:41.9]} 20. Rxe5 {[%clk 0:02:14.2]} 20... f6 {[%clk
0:01:35.9]} 21. Re1 {[%clk 0:02:04.7]} 21... Bh3 {[%clk 0:01:30.6]} 22. Qf3
{[%clk 0:02:03.4]} 22... g5 {[%clk 0:01:17.5]} 23. Qxc6 {[%clk 0:01:55.3]} 23...
bxc6 {[%clk 0:01:18.4]} 24. Nf3 {[%clk 0:01:55.5]} 24... Bf5 {[%clk 0:01:13.7]}
25. Ncxd4 {[%clk 0:01:44]} 25... Bxd3 {[%clk 0:01:08.1]} 26. Nxc6 {[%clk
0:01:34.6]} 26... Be4 {[%clk 0:01:07]} 27. Nfd4 {[%clk 0:01:27.3]} 27... Rac8
{[%clk 0:00:55.6]} 28. Rad1 {[%clk 0:00:38]} 28... Bxc6 {[%clk 0:00:51.3]} 29.
Nxc6 {[%clk 0:00:36.8]} 29... Rxe1+ {[%clk 0:00:50.5]} 30. Rxe1 {[%clk
0:00:37.3]} 30... Rxc6 {[%clk 0:00:50.8]} 31. Kf1 {[%clk 0:00:37.3]} 31... Kf7
{[%clk 0:00:49]} 32. Rd1 {[%clk 0:00:36.5]} 32... Rd6 {[%clk 0:00:48.4]} 33.
Rxd6 {[%clk 0:00:36.7]} 33... Bxd6 {[%clk 0:00:49.1]} 34. Ke2 {[%clk 0:00:37.3]}
34... Ke6 {[%clk 0:00:45.5]} 35. f3 {[%clk 0:00:37]} 35... Ke5 {[%clk
0:00:44.6]} 36. Kd3 {[%clk 0:00:33.8]} 36... Bb4 {[%clk 0:00:41.3]} 37. h3
{[%clk 0:00:33.1]} 37... h5 {[%clk 0:00:40.6]} 38. g4 {[%clk 0:00:32.9]} 38...
h4 {[%clk 0:00:37]} 39. Ke3 {[%clk 0:00:31.6]} 39... Bc5+ {[%clk 0:00:36.4]} 40.
Ke2 {[%clk 0:00:30.1]} 40... Kf4 {[%clk 0:00:35.8]} 0-1

[Event "Late-Titled-Tuesday-Blitz-February-13-2024"]
[Site "Chess.com"]
[Date "2024.02.13"]
[Round "7"]
[White "JaackCamel"]
[Black "Attacker_2006"]
[Result "1-0"]
[WhiteElo "2208"]
[BlackElo "2441"]
[TimeControl "180+1"]
[EndTime "15:17:32 PST"]
[Termination "JaackCamel won by resignation"]

1. d4 {[%clk 0:02:55.3]} 1... d5 {[%clk 0:02:59.9]} 2. c4 {[%clk 0:02:54.8]}
2... e6 {[%clk 0:03:00.2]} 3. Nc3 {[%clk 0:02:54.6]} 3... Nf6 {[%clk 0:03:00.1]}
4. cxd5 {[%clk 0:02:54.5]} 4... exd5 {[%clk 0:03:00]} 5. Bg5 {[%clk 0:02:54.3]}
5... Bb4 {[%clk 0:02:59.1]} 6. e3 {[%clk 0:02:53.8]} 6... c6 {[%clk 0:02:50.5]}
7. Bd3 {[%clk 0:02:48.4]} 7... h6 {[%clk 0:02:43.7]} 8. Bxf6 {[%clk 0:02:47.9]}
8... Qxf6 {[%clk 0:02:44.6]} 9. h3 {[%clk 0:02:39.7]} 9... Bf5 {[%clk 0:02:37]}
10. Nf3 {[%clk 0:02:39.1]} 10... Nd7 {[%clk 0:02:31.4]} 11. O-O {[%clk
0:02:38.3]} 11... O-O {[%clk 0:02:27.1]} 12. a3 {[%clk 0:02:37.9]} 12... Ba5
{[%clk 0:02:20.8]} 13. Rc1 {[%clk 0:02:27.6]} 13... Rac8 {[%clk 0:02:12.6]} 14.
Bxf5 {[%clk 0:02:24.8]} 14... Qxf5 {[%clk 0:02:12]} 15. Na4 {[%clk 0:02:22.3]}
15... Bc7 {[%clk 0:02:05.3]} 16. Nc5 {[%clk 0:02:20.4]} 16... Nxc5 {[%clk
0:01:59]} 17. Rxc5 {[%clk 0:02:19.9]} 17... Bd6 {[%clk 0:01:56]} 18. Qc2 {[%clk
0:02:13.7]} 18... Qh5 {[%clk 0:01:47.2]} 19. Rc3 {[%clk 0:02:11.6]} 19... Rfe8
{[%clk 0:01:44.4]} 20. b4 {[%clk 0:02:06]} 20... Re6 {[%clk 0:01:38.9]} 21. b5
{[%clk 0:01:49.4]} 21... Rg6 {[%clk 0:01:36.6]} 22. Kh1 {[%clk 0:01:41.2]} 22...
Rf6 {[%clk 0:01:25.5]} 23. e4 {[%clk 0:01:32.9]} 23... dxe4 {[%clk 0:01:10.8]}
24. Qxe4 {[%clk 0:01:31.5]} 24... Re6 {[%clk 0:01:03.2]} 25. Qd3 {[%clk
0:01:27.3]} 25... Bb8 {[%clk 0:01:02.7]} 26. bxc6 {[%clk 0:01:22.1]} 26... bxc6
{[%clk 0:01:02.4]} 27. d5 {[%clk 0:01:15.4]} 27... Rd6 {[%clk 0:00:56.5]} 28.
Qa6 {[%clk 0:01:08.5]} 28... Rcd8 {[%clk 0:00:43.2]} 29. dxc6 {[%clk 0:01:03.1]}
29... Rd1 {[%clk 0:00:37.8]} 30. c7 {[%clk 0:00:59]} 30... Rxf1+ {[%clk
0:00:20.5]} 31. Qxf1 {[%clk 0:00:58.2]} 31... Bxc7 {[%clk 0:00:20.4]} 32. Rxc7
{[%clk 0:00:56.4]} 32... Qf5 {[%clk 0:00:14.2]} 33. Rc1 {[%clk 0:00:51.8]} 33...
a5 {[%clk 0:00:11.6]} 34. Qc4 {[%clk 0:00:50.2]} 34... g6 {[%clk 0:00:06.4]} 35.
Kg1 {[%clk 0:00:49.7]} 35... Re8 {[%clk 0:00:04.5]} 36. Qc3 {[%clk 0:00:47.5]}
36... Re4 {[%clk 0:00:02.6]} 37. Qc8+ {[%clk 0:00:46.2]} 37... Qxc8 {[%clk
0:00:03.1]} 38. Rxc8+ {[%clk 0:00:45.9]} 38... Kg7 {[%clk 0:00:04]} 39. Rc3
{[%clk 0:00:43.3]} 1-0

[Event "Late-Titled-Tuesday-Blitz-February-13-2024"]
[Site "Chess.com"]
[Date "2024.02.13"]
[Round "7"]
[White "kibromNNN"]
[Black "Bryanl106"]
[Result "0-1"]
[WhiteElo "1817"]
[BlackElo "2526"]
[TimeControl "180+1"]
[EndTime "15:17:35 PST"]
[Termination "Bryanl106 won on time"]

1. d4 {[%clk 0:03:00.4]} 1... Nf6 {[%clk 0:02:57.4]} 2. c4 {[%clk 0:03:00.4]}
2... g6 {[%clk 0:02:57.7]} 3. Nc3 {[%clk 0:03:00.3]} 3... c5 {[%clk 0:02:58.1]}
4. d5 {[%clk 0:02:59.1]} 4... Bg7 {[%clk 0:02:58.6]} 5. e4 {[%clk 0:02:58.7]}
5... d6 {[%clk 0:02:59.2]} 6. Be2 {[%clk 0:02:55.1]} 6... O-O {[%clk 0:02:57.9]}
7. Nf3 {[%clk 0:02:53.1]} 7... e6 {[%clk 0:02:55.4]} 8. O-O {[%clk 0:02:50.5]}
8... Na6 {[%clk 0:02:55.5]} 9. Bg5 {[%clk 0:02:44.7]} 9... h6 {[%clk 0:02:54.7]}
10. Bh4 {[%clk 0:02:43.7]} 10... Nc7 {[%clk 0:02:53]} 11. Re1 {[%clk 0:02:39.5]}
11... exd5 {[%clk 0:02:49.5]} 12. exd5 {[%clk 0:02:38.3]} 12... Re8 {[%clk
0:02:48.9]} 13. h3 {[%clk 0:02:34.7]} 13... Bf5 {[%clk 0:02:41.3]} 14. Bd3
{[%clk 0:02:30.4]} 14... Qd7 {[%clk 0:02:39]} 15. Qc2 {[%clk 0:02:23.9]} 15...
Bxd3 {[%clk 0:02:36.7]} 16. Qxd3 {[%clk 0:02:23.4]} 16... a6 {[%clk 0:02:30.1]}
17. a4 {[%clk 0:02:13]} 17... b6 {[%clk 0:02:16.1]} 18. Nd2 {[%clk 0:01:47.5]}
18... Nh5 {[%clk 0:02:12.8]} 19. Nde4 {[%clk 0:01:41.8]} 19... f5 {[%clk
0:02:11.5]} 20. Ng3 {[%clk 0:01:28.2]} 20... Nf4 {[%clk 0:02:06.9]} 21. Qd2
{[%clk 0:01:22.9]} 21... g5 {[%clk 0:02:05.9]} 22. Nf1 {[%clk 0:01:17.1]} 22...
Nxh3+ {[%clk 0:02:02.6]} 23. gxh3 {[%clk 0:01:11.7]} 23... gxh4 {[%clk
0:02:03.5]} 24. Qf4 {[%clk 0:01:04.8]} 24... Bf6 {[%clk 0:02:02.3]} 25. Ne3
{[%clk 0:01:01.9]} 25... Re5 {[%clk 0:01:55.1]} 26. Qxh6 {[%clk 0:00:51.3]}
26... Qe7 {[%clk 0:01:40.9]} 27. Ne2 {[%clk 0:00:46.9]} 27... Bg5 {[%clk
0:01:40.2]} 28. Qg6+ {[%clk 0:00:44.2]} 28... Qg7 {[%clk 0:01:40.2]} 29. Qxg7+
{[%clk 0:00:42.7]} 29... Kxg7 {[%clk 0:01:41.1]} 30. Nc3 {[%clk 0:00:37.1]}
30... Rae8 {[%clk 0:01:37.8]} 31. Ng2 {[%clk 0:00:34.8]} 31... Rxe1+ {[%clk
0:01:29.1]} 32. Rxe1 {[%clk 0:00:35.5]} 32... Rxe1+ {[%clk 0:01:29.7]} 33. Nxe1
{[%clk 0:00:34.7]} 33... Bd2 {[%clk 0:01:30.1]} 34. Nf3 {[%clk 0:00:33.7]} 34...
Bxc3 {[%clk 0:01:24.4]} 35. bxc3 {[%clk 0:00:34]} 35... b5 {[%clk 0:01:25.3]}
36. axb5 {[%clk 0:00:24.1]} 36... axb5 {[%clk 0:01:26.2]} 37. cxb5 {[%clk
0:00:22.3]} 37... Nxb5 {[%clk 0:01:27.1]} 38. c4 {[%clk 0:00:19.6]} 38... Na3
{[%clk 0:01:26.5]} 39. Nxh4 {[%clk 0:00:18.6]} 39... Kf6 {[%clk 0:01:26.7]} 40.
Nf3 {[%clk 0:00:16.2]} 40... Nxc4 {[%clk 0:01:25.8]} 41. Kf1 {[%clk 0:00:14.7]}
41... Nb6 {[%clk 0:01:26.1]} 42. Ke2 {[%clk 0:00:12.7]} 42... Nxd5 {[%clk
0:01:24.6]} 43. h4 {[%clk 0:00:11.6]} 43... Nf4+ {[%clk 0:01:24.6]} 44. Kd2
{[%clk 0:00:10.9]} 44... d5 {[%clk 0:01:24.3]} 45. Kc3 {[%clk 0:00:09.5]} 45...
Ne2+ {[%clk 0:01:22.3]} 46. Kd2 {[%clk 0:00:08.8]} 46... Nf4 {[%clk 0:01:22.8]}
47. Ne1 {[%clk 0:00:05.7]} 47... Ng6 {[%clk 0:01:22.5]} 48. Ng2 {[%clk
0:00:03.3]} 48... Ne7 {[%clk 0:01:18.5]} 49. Nf4 {[%clk 0:00:01.8]} 49... Ke5
{[%clk 0:01:17.9]} 0-1